Cogmind - Beta 14 @@@ ROGUE MODE // 2024.10.02 @ 23:22:50 Player: Lunace Result: Destroyed by B-75 Beast with Heavy Machine Gun Performance ------------- Evolutions (2) 1000 Regions Visited (6) 1200 Robots Destroyed (57) 285 Value Destroyed (2286) 2286 Prototype IDs (25) 500 Alien Tech Used (0) 0 Bonus (1188) 1188 TOTAL SCORE: 6459 Bonus ------- High Alert Combat Kills 153 Follower Combat Kills 35 Entered Garrisons 200 Used RIF Installer 500 Aligned with FarCom 300 Cogmind --------- Core Integrity 0/550 Matter 71/300 Energy 31/100 System Corruption 4% Temperature Cool (48) Movement Core (100) Ox1 Location -8/Garrison Parts ------- > --- POWER (1) -------- (None) > --- PROPULSION (4) --- (None) > --- UTILITY (4) ------ Coolant Injector > --- WEAPON (2) ------- Longsword +1 > --- INVENTORY (5) ---- Improved Ion Engine Enhanced Autogun Mini Grenade Launcher Remote Datajack Peak State ------------ > --- POWER ------------ Improved Ion Engine > --- PROPULSION ------- Improved Aluminum Leg Improved Aluminum Leg Improved Aluminum Leg Improved Aluminum Leg > --- UTILITY ---------- Large Storage Unit Improved Weapon Shielding Improved Weapon Shielding Light Armor Plating > --- WEAPON ----------- Enhanced Autogun Longsword +1 > --- INVENTORY -------- Improved Ion Engine Aerolev Unit Improved Heat Sink Medium Storage Unit Structural Scanner Experimental Sensor Array Reaction Control System Relay Coupler [NC] Relay Coupler [NC] Relay Coupler [NC] Relay Coupler [Grunt] Relay Coupler [Sentry] Enhanced Autogun Advanced EMP Blaster Mini Grenade Launcher [Rating: 34] Favorites ----------- Power Ion Engine Engine Ion Engine Propulsion Improved Aluminum Leg Treads Light Treads Leg Improved Aluminum Leg Wheel Wheel Hover Unit Gravmag System Utility Large Storage Unit Device Structural Scanner Storage Large Storage Unit Hackware Relay Coupler [Grunt] Protection Light Armor Plating Weapon Assault Rifle Energy Gun Medium Laser Energy Cannon Ion Cannon Ballistic Gun Assault Rifle Launcher Grenade Launcher Special Weapon Remote Datajack Slashing Weapon Longsword +1 Build | -11 -10 -10 -10 -9 -8 -8 ------- Run | Yrd Mat Min Exi Min Mat Gar Slots Evolved 4 | . . . . . 4 . Power . | . . . . . . . Propulsion 2 | . . . . . 2 . Utility 2 | . . . . . 2 . Weapon . | . . . . . . . Parts Attached 67 | 7 7 1 . 10 14 28 Power 5 | 1 . . . 2 . 2 Engine 5 | 1 . . . 2 . 2 Core . | . . . . . . . Reactor . | . . . . . . . Propulsion 13 | 2 . . . 2 4 5 Treads 5 | 2 . . . 1 . 2 Leg 4 | . . . . . 4 . Wheel 1 | . . . . 1 . . Hover 3 | . . . . . . 3 Flight . | . . . . . . . Utility 23 | 2 6 . . 2 5 8 Device 10 | 1 3 . . 1 3 2 Storage 3 | 1 1 . . . 1 . Processor . | . . . . . . . Hackware 2 | . . . . . . 2 Protection 8 | . 2 . . 1 1 4 Artifact . | . . . . . . . Weapon 26 | 2 1 1 . 4 5 13 Energy Gun 2 | 1 1 . . . . . Energy Cannon 1 | . . . . . 1 . Ballistic Gun 12 | 1 . . . 2 4 5 Ballistic Cannon . | . . . . . . . Launcher 3 | . . 1 . . . 2 Special Weapon 1 | . . . . . . 1 Impact Weapon . | . . . . . . . Slashing Weapon 7 | . . . . 2 . 5 Piercing Weapon . | . . . . . . . Special Melee Weapon . | . . . . . . . Unidentified Prototypes 2 | . . . . . 1 1 Parts Lost 19 | . . 1 . 3 . 15 Power . | . . . . . . . Propulsion 10 | . . 1 . 1 . 8 Utility 7 | . . . . . . 7 Weapon 2 | . . . . 2 . . Highest Loss Streak 9 | . . 1 . 3 . 9 To Critical Strikes . | . . . . . . . Average Slot Usage (%) 94 | . 100 99 85 84 98 93 Engine 11 | . 14 14 14 14 9 8 Treads 13 | . 28 27 14 13 . . Leg 11 | . . . . . 35 29 Device 3 | . 8 . . 6 15 1 Storage 11 | . 14 14 14 14 9 8 Protection 14 | . 5 14 14 7 10 21 Energy Gun 4 | . 14 10 . . . . Ballistic Gun 11 | . 14 14 14 7 12 8 Launcher 4 | . . 3 14 6 . 4 Slashing Weapon 1 | . . . . 6 . 3 Peak Build Rating 34 | 7 7 9 8 16 28 34 Average Rating 15 | 5 7 7 8 11 24 29 On Entrance 9 | . 7 7 8 8 11 27 Naked Turns . | . . . . . . . Heaviest Build 44 | 15 32 33 33 33 44 40 Greatest Support 60 | 40 40 40 20 20 52 60 Greatest Overweight (x) 3 | 1 . 1 1 3 3 2 Average Overweight (x) . | . . . 1 2 . . Largest Inventory Capacity 15 | 8 15 15 15 15 15 15 Average Capacity 14 | 7 14 15 15 15 15 14 Most Carried 15 | 2 5 9 10 10 15 15 Average Carried 9 | 1 4 7 9 7 12 13 Final Capacity 15 | 8 15 15 15 15 15 5 Final Carried 14 | 2 5 9 10 10 14 4 Class Distribution -------------------- 95% | Mutant 4% | Bothacker-Mutant Dominant Class ---------------- Mutant | -10/Materials Mutant | -10/Mines Mutant | -10/Exiles Mutant | -9/Mines Mutant | -8/Materials Mutant | -8/Garrison Resources | -11 -10 -10 -10 -9 -8 -8 ----------- Run | Yrd Mat Min Exi Min Mat Gar Matter Collected 1439 | 239 206 88 79 106 248 473 Remotely . | . . . . . . . Salvage Created 1798 | 16 246 248 . 130 523 635 Parts 129 | 5 17 25 . 7 29 46 Haulers Intercepted 3 | . . . . . 3 . Recyclers Shooed . | . . . . . . . Parts Field Recycled . | . . . . . . . Retrieved Matter . | . . . . . . . Parts Self-Destructed . | . . . . . . . Prevented . | . . . . . . . Kills | -11 -10 -10 -10 -9 -8 -8 ------- Run | Yrd Mat Min Exi Min Mat Gar Combat Hostiles Destroyed 44 | . 6 15 . 1 4 18 Melee 2 | . . . . 1 . 1 Guns 25 | . 6 8 . . 2 9 Cannons 2 | . . . . . 2 . AOE 15 | . . 7 . . . 8 Classes Destroyed 12 | 1 4 . . 1 3 3 Worker 3 | . 1 . . 2 . . Tunneler 2 | 1 . . . 1 . . Hauler 3 | . . . . . 3 . Recycler 1 | . . . . . 1 . Mechanic 1 | . . . . . 1 . Watcher 3 | . 2 . . . 1 . Swarmer 18 | . 2 12 . . . 4 Grunt 14 | . 4 2 . . 2 6 Sentry 5 | . . . . 1 2 2 Hunter 2 | . . . . . . 2 Programmer 3 | . . . . . . 3 Behemoth 1 | . . . . . . 1 Best Kill Streak 6 | 1 2 5 . 1 3 6 Combat Bots Only 6 | . 2 5 . 1 2 6 Max Kills in Single Turn 2 | 1 1 1 . 1 2 2 Gunslinging . | . . . . . . . Exploded 2 | . . 1 . . . 2 Melee 1 | . . . . 1 . 1 Uniques/NPCs Destroyed 1 | . . 1 . . . . YI-UF0 (-10/Mines) Combat | -11 -10 -10 -10 -9 -8 -8 -------- Run | Yrd Mat Min Exi Min Mat Gar Hostile Shots Fired 218 | . 17 42 . 13 19 127 Missed 56 | . 9 13 . 2 4 28 Damage Taken 3140 | . 85 582 . 176 156 2141 Core 658 | . 22 67 . 16 . 553 Absorbed by Shields 65 | . . . . . 61 4 Redirected to Shielding 201 | . . . . . . 201 Core Remaining (%) 79 | 100 . . . 58 . . Volleys Fired 160 | 1 34 24 . 7 37 57 Largest 2 | 2 2 2 . 1 2 2 Hottest 83 | 60 70 70 . 20 83 55 Shots Fired 266 | 2 67 38 . 7 58 94 Gun 206 | 2 67 26 . 7 28 76 Cannon 30 | . . . . . 30 . Launcher 26 | . . 12 . . . 14 Special 4 | . . . . . . 4 Kinetic 160 | 1 34 14 . 7 28 76 Thermal 75 | . 33 12 . . 30 . Explosive 26 | . . 12 . . . 14 Electromagnetic 1 | 1 . . . . . . Robot Hit Streak 14 | 1 7 6 . 6 14 9 Robot Miss Streak 6 | . 6 4 . 2 4 4 Penetration Max . | . . . . . . . Secondary Targets 1 | . . 1 . . . . Max Gunslinging Chain 1 | . . 1 . . . . Shots Hit Robots 175 | 1 32 19 . 11 36 76 Core Hits 94 | 1 15 21 . 3 15 39 Critical Kills 1 | . . . . . . 1 Critical Parts Destroyed . | . . . . . . . Critical Strikes 7 | . 2 1 . . . 4 Burn 3 | . 2 1 . . . . Destroy 1 | . . . . . . 1 Sever 3 | . . . . . . 3 Melee Attacks 50 | . . . . 5 . 45 Impact . | . . . . . . . Slashing 50 | . . . . 5 . 45 Piercing . | . . . . . . . Sneak Attacks 3 | . . . . 3 . . Combat Hostiles . | . . . . . . . Follow-up Attacks . | . . . . . . . Damage Inflicted 4745 | 10 440 688 . 443 776 2388 Guns 1851 | 10 440 170 . 81 316 834 Cannons 460 | . . . . . 460 . Explosions 1126 | . . 518 . . . 608 Melee 1308 | . . . . 362 . 946 Ramming . | . . . . . . . Kinetic 1575 | 10 228 106 . 81 316 834 Thermal 736 | . 212 64 . . 460 . Explosive 1126 | . . 518 . . . 608 Electromagnetic . | . . . . . . . Impact . | . . . . . . . Slashing 1308 | . . . . 362 . 946 Piercing . | . . . . . . . Highest Corruption 4 | . . . . . . 4 Average Corruption 3 | . . . . . . 3 Corruption Purged . | . . . . . . . Corruption Blocked . | . . . . . . . Effects 7 | . . . . . . 7 Message Errors 2 | . . . . . . 2 Matter Fused 4 | . . . . . . 4 Data Loss (minor) 1 | . . . . . . 1 Overload Shots . | . . . . . . . Overflow Damage 136 | . . 16 . 116 . 4 Projectiles . | . . . . . . . Explosions 18 | . . 16 . . . 2 Melee 118 | . . . . 116 . 2 Knockbacks . | . . . . . . . Impact . | . . . . . . . Kinetic . | . . . . . . . Secondary . | . . . . . . . Self-Inflicted Damage 165 | . . 97 . . . 68 Shots 8 | . . 5 . . . 3 Rammed . | . . . . . . . Targets Rammed . | . . . . . . . Kicked . | . . . . . . . Crushed . | . . . . . . . Highest Temperature 231 | . 108 72 . . 143 231 Average Temperature 33 | . 30 30 . . 46 20 Received Heat Transfer 819 | . 57 27 . 54 80 601 Siege Activations . | . . . . . . . Robots Corrupted . | . . . . . . . Combat Hostiles . | . . . . . . . Parts Fried . | . . . . . . . Impact Corruptions . | . . . . . . . Robots Melted . | . . . . . . . Combat Hostiles . | . . . . . . . Parts Melted 3 | . 2 . . . 1 . Heat Transferred 1776 | . 777 259 . . 740 . Parts Sabotaged . | . . . . . . . Parts Stolen . | . . . . . . . Parts Stripped . | . . . . . . . Power Chain Reactions . | . . . . . . . Alert | -11 -10 -10 -10 -9 -8 -8 ------- Run | Yrd Mat Min Exi Min Mat Gar Peak Influence 793 | 5 215 240 . 20 190 793 Initial 35 | . 3 35 . . 7 . Average 202 | . 94 81 . 13 75 473 Maximum Alert Level 3 | . 1 1 . . . 3 Low Security (%) 71 | 100 79 97 . 100 100 24 Level 1 10 | . 20 2 . . . 21 Level 2 7 | . . . . . . 22 Level 3 10 | . . . . . . 31 Level 4 . | . . . . . . . Level 5 . | . . . . . . . High Security . | . . . . . . . Max Security . | . . . . . . . Squads Dispatched 1 | . 1 . . . . . Investigation . | . . . . . . . Extermination . | . . . . . . . Reinforcement 1 | . 1 . . . . . Assault . | . . . . . . . Garrison . | . . . . . . . Intercept . | . . . . . . . Searches Triggered . | . . . . . . . Construction Impeded . | . . . . . . . Haulers Reinforced . | . . . . . . . Active Scanning Responses . | . . . . . . . Cargo Convoy Interrupts . | . . . . . . . Stealth | -11 -10 -10 -10 -9 -8 -8 --------- Run | Yrd Mat Min Exi Min Mat Gar Distress Signals 3 | . 1 1 . . 1 . Communications Jammed . | . . . . . . . Distress Signals . | . . . . . . . Times Spotted 57 | . 16 13 . 2 7 19 Peak Tracking Total 4 | . 3 3 . 2 4 4 Tactical Retreats 2 | . 1 . . . . 1 Traps | -11 -10 -10 -10 -9 -8 -8 ------- Run | Yrd Mat Min Exi Min Mat Gar Traps Triggered 1 | . . . . . . 1 Indirectly . | . . . . . . . Trap Hack Attempts . | . . . . . . . Triggered . | . . . . . . . Disarmed . | . . . . . . . Reprogrammed . | . . . . . . . Reused . | . . . . . . . Traps Extracted . | . . . . . . . Installed . | . . . . . . . Triggered . | . . . . . . . Machines | -11 -10 -10 -10 -9 -8 -8 ---------- Run | Yrd Mat Min Exi Min Mat Gar Machines Disabled 7 | . 1 . . . . 6 Max in Single Turn 2 | . 1 . . . . 2 Garrison Relay 3 | . . . . . . 3 Phase Generator 1 | . . . . . . 1 Machines Repaired . | . . . . . . . Machines Dismantled . | . . . . . . . Machines Sabotaged . | . . . . . . . Overloaded Fab Kills . | . . . . . . . Hacking | -11 -10 -10 -10 -9 -8 -8 --------- Run | Yrd Mat Min Exi Min Mat Gar Machines Accessed 9 | . 3 . 2 . 3 1 Terminals 5 | . 2 . . . 2 1 Fabricators . | . . . . . . . Repair Stations . | . . . . . . . Recycling Units 1 | . 1 . . . . . Scanalyzers . | . . . . . . . Garrison Access 1 | . . . . . 1 . Total Hacks 21 | . 9 . 2 . 8 2 Successful 7 | . 2 . 2 . 3 . Failed 14 | . 7 . . . 5 2 Catastrophic 1 | . . . . . . 1 Database Lockouts . | . . . . . . . Manual 12 | . 4 . 3 . 5 . Terminals 12 | . 5 . . . 5 2 Fabricators . | . . . . . . . Repair Stations . | . . . . . . . Recycling Units 4 | . 4 . . . . . Scanalyzers . | . . . . . . . Garrison Access 3 | . . . . . 3 . Terminal Hacks 3 | . 1 . 2 . . . Record 1 | . . . 1 . . . Terminal Index 1 | . 1 . . . . . Derelict Proto ID Bank 1 | . . . 1 . . . Fabricator Hacks . | . . . . . . . Repair Station Hacks . | . . . . . . . Recycling Unit Hacks 1 | . 1 . . . . . Retrieve Components 1 | . 1 . . . . . Scanalyzer . | . . . . . . . Garrison Access Hacks 1 | . . . . . 1 . Unlock Access 1 | . . . . . 1 . Unauthorized Hacks 2 | . . . . . 2 . Terminals 2 | . . . . . 2 . Skim 2 | . . . . . 2 . Fabricators . | . . . . . . . Repair Stations . | . . . . . . . Recycling Units . | . . . . . . . Scanalyzers . | . . . . . . . Garrison Access . | . . . . . . . Data Cores Recovered . | . . . . . . . Used . | . . . . . . . Hacking Detections 5 | . 2 . . . 2 1 Full Trace Events 1 | . . . . . . 1 Feedback Events . | . . . . . . . Feedback Blocked . | . . . . . . . Robot Schematics Acquired . | . . . . . . . Robots Built . | . . . . . . . Authchips . | . . . . . . . Time . | . . . . . . . Total Robot Build Rating . | . . . . . . . Part Schematics Acquired . | . . . . . . . Parts Built . | . . . . . . . Authchips . | . . . . . . . Time . | . . . . . . . Total Part Build Rating . | . . . . . . . Parts Repaired . | . . . . . . . Time . | . . . . . . . Parts Recycled . | . . . . . . . Recycled Matter . | . . . . . . . Retrieved Matter . | . . . . . . . Retrieved Components 4 | . 4 . . . . . Parts Scanalyzed . | . . . . . . . Part Schematics Acquired . | . . . . . . . Parts Damaged . | . . . . . . . Bothacking | -11 -10 -10 -10 -9 -8 -8 ------------ Run | Yrd Mat Min Exi Min Mat Gar Used RIF Installer 1 | . . . . . . 1 Robots Hacked 3 | . . . . . . 3 Non-combat . | . . . . . . . Combat 3 | . . . . . . 3 Robot Hacks Applied 3 | . . . . . . 3 formatsys_high 3 | . . . . . . 3 Relay Couplers Released 14 | . . . . . . 14 Machine Destruction 14 | . . . . . . 14 Attached 2 | . . . . . . 2 Fabnet Peak Effective % . | . . . . . . . Robots Rewired . | . . . . . . . Allies Hacked . | . . . . . . . Hacks Repelled . | . . . . . . . Allies | -11 -10 -10 -10 -9 -8 -8 -------- Run | Yrd Mat Min Exi Min Mat Gar Total Allies 4 | . . . . 1 . 3 Largest Group 3 | . . . . 1 1 3 Highest-Rated Group 48 | . . . . 31 31 48 Highest-Rated Ally 31 | . . . . 31 31 16 Total Orders . | . . . . . . . Ally Attacks 22 | . . . . . 14 8 Total Damage 299 | . . . . . 189 110 Kills 1 | . . . . . 1 . Allies Corrupted . | . . . . . . . Allies Melted . | . . . . . . . Intel | -11 -10 -10 -10 -9 -8 -8 ------- Run | Yrd Mat Min Exi Min Mat Gar Robot Analysis Total . | . . . . . . . Derelict Logs Recovered 3 | . . 1 . 2 . . Drone Launches . | . . . . . . . Drone Recoveries . | . . . . . . . Exploration | -11 -10 -10 -10 -9 -8 -8 ------------- Run | Yrd Mat Min Exi Min Mat Gar Turns Passed 4388 | 66 598 1070 635 340 464 1215 Spaces Moved 2383 | 35 295 593 265 191 263 741 Core 11 | 6 . . . . . 5 Treads 1232 | 29 295 593 265 48 . 2 Legs 854 | . . . . . 254 600 Wheels 152 | . . . . 143 9 . Hover 134 | . . . . . . 134 Flight . | . . . . . . . Fastest Speed 50 | 50 160 160 240 110 120 50 Average Speed 152 | 142 160 161 240 153 120 122 Slowest Speed 260 | 160 160 240 240 240 125 260 Overloaded Moves . | . . . . . . . Propulsion Burnouts . | . . . . . . . Robots Hopped . | . . . . . . . Cave-ins Triggered . | . . . . . . . Exploration Rate (%) 52 | 3 50 99 65 44 33 73 Regions Visited 6 Branch Regions 3 Pre-discovered Areas 2 | . . 1 1 . . . Known Exits Taken 1 | . . . . . 1 . Unknown Exits Taken 5 | 1 1 1 1 1 . . Scrap Searched 2 | . . 1 . 1 . . Spaces Dug 16 | . . . . . . 16 Terrain Destroyed 285 | . . 87 . . 2 196 Melee 16 | . . . . . . 16 Projectile 2 | . . . . . 2 . AOE 267 | . . 87 . . . 180 Terrain Rammed . | . . . . . . . Walls Destroyed . | . . . . . . . Machines Disabled . | . . . . . . . Actions | -11 -10 -10 -10 -9 -8 -8 --------- Run | Yrd Mat Min Exi Min Mat Gar Total 2858 | 46 352 669 265 225 358 943 Wait 134 | 2 13 48 . 3 22 46 Move 2378 | 34 294 592 264 190 263 741 Hop . | . . . . . . . Pick Up 34 | 2 2 4 1 3 10 12 Fast Attach 28 | 7 2 . . 4 9 6 Attach 12 | . . . . 2 2 8 Detach 4 | . . . . 2 1 1 Swap 27 | . 5 1 . 4 3 14 Drop 31 | . 2 . . 5 11 13 Fire 160 | 1 34 24 . 7 37 57 Melee 50 | . . . . 5 . 45 Ram . | . . . . . . . Kick . | . . . . . . . Crush . | . . . . . . . Escape Stasis . | . . . . . . . Rewire . | . . . . . . . Trap . | . . . . . . . Miscellaneous . | . . . . . . . Route ------- -11/Scrapyard -10/Materials (discovered 2 exits: [*Mat] / [*Min]) -10/Mines (discovered 4 exits: [*Mat x2] / *Exi / [*Sub]) -10/Exiles -9/Mines -8/Materials (discovered 2 exits: Fac / Gar) -8/Garrison (discovered 2 exits: *Fac x2) History --------- Turn | Location | Event 6 | -11/Scrapyard | Discovered new exit (range 15) 67 | -11/Scrapyard | Entered Materials 305 | -10/Materials | Build established: Mutant 372 | -10/Materials | Discovered new exit (range 16) 609 | -10/Materials | Discovered new exit (range 7) 665 | -10/Materials | Entered Mines 666 | -10/Mines | Learned location of Storage (-7) 730 | -10/Mines | Discovered new exit (range 8) 874 | -10/Mines | Found a damaged Exp. Sensor Array with a note attached 878 | -10/Mines | Found Prototype Device 896 | -10/Mines | Learned 2 Materials zone layouts 939 | -10/Mines | YI-UF0 nonchalantly dropped a Grenade Launcher on the ground 1352 | -10/Mines | Destroyed YI-UF0 1504 | -10/Mines | Discovered new exit (range 13) 1708 | -10/Mines | Discovered new exit (range 9) 1726 | -10/Mines | Deemed a non-threat by the Exiles lab entrance 1726 | -10/Mines | Discovered new exit (range 5) 1735 | -10/Mines | Entered Exiles 1791 | -10/Exiles | Met 8R-AWN 1834 | -10/Exiles | Met EX-HEX 1997 | -10/Exiles | Met EX-BIN 2031 | -10/Exiles | Aligned with FarCom system 2033 | -10/Exiles | Given EX-Vault access code 2088 | -10/Exiles | Opened EX-Vault 2110 | -10/Exiles | Found Longsword +1 2161 | -10/Exiles | Warned to stay clear of 0b10 Research branches 2238 | -10/Exiles | Learned location of Zion (-7) 2279 | -10/Exiles | Met EX-DEC 2344 | -10/Exiles | Discovered new exit (range 14) 2370 | -10/Exiles | Left Exiles lab with Longsword +1 2370 | -10/Exiles | Entered Mines 2480 | -9/Mines | Learned Materials security intel 2485 | -9/Mines | Discovered new exit (range 5) 2518 | -9/Mines | Learned Materials stockpile data 2519 | -9/Mines | Joined a pair of Derelicts in attacking an 0b10 outpost 2568 | -9/Mines | Lost 3 parts (1n2w) 2592 | -9/Mines | Received a Mining Laser from a helpful Derelict 2710 | -9/Mines | Entered Materials 2710 | -8/Materials | Accompanied by 1 ally 2710 | -8/Materials | Evolved 4 slots: Propulsion x2, Utility x2 2711 | -8/Materials | Identified exit to Factory 3174 | -8/Materials | Identified exit to Garrison 3174 | -8/Materials | Entered Garrison 3185 | -8/Garrison | Triggered checkpoint 3302 | -8/Garrison | Garrison Relay disabled 3346 | -8/Garrison | Triggered checkpoint 3380 | -8/Garrison | Installed Relay Interface Framework 3388 | -8/Garrison | Discovered exit to Factory (range 12) 3474 | -8/Garrison | Triggered checkpoint 3481 | -8/Garrison | Garrison Relay disabled 3600 | -8/Garrison | Triggered checkpoint 3787 | -8/Garrison | Garrison Relay disabled 3907 | -8/Garrison | Discovered exit to Factory (range 12) 3988 | -8/Garrison | Phase Generator disabled 4143 | -8/Garrison | Lost 5 parts (3n2u) 4316 | -8/Garrison | Spotted B-75 Beast 4317 | -8/Garrison | Spotted B-75 Beast 4357 | -8/Garrison | Core integrity fell below 50% 4358 | -8/Garrison | Destroyed B-75 Beast 4362 | -8/Garrison | Lost 3 allies 4368 | -8/Garrison | Core integrity fell below 20% 4389 | -8/Garrison | Destroyed by B-75 Beast with Heavy Machine Gun Last Messages --------------- 04353_ Critical hit (Blast). 04353_ Knocked back. 04353_ Imp. Weapon Shielding destroyed. 04354_ Dropped Enh. Autogun. 04355_ Destroyed Med. Reflective Plating. 04356_ Knocked back. 04358_ B-75 Beast destroyed. 04358_ Knocked back. 04359_ Acquired 8 matter. 04361_ Acquired Imp. Medium Treads. 04366_ Acquired Lyr. Medium Armor Plating. 04374_ ALERT: Garrison interior compromised. 04377_ BOBVUSUIV |PP J